bitfinex-derivatives/quotes_BTCF0:USTF0_20241130
["timestamp","ask_amount","ask_price","bid_price","bid_amount"]
[1732961119545,1.18635133,96822.0,96821.0,0.00072458]
[1732961128364,1.62051133,96822.0,96821.0,0.00072458]
[1732961131761,0.89891133,96822.0,96821.0,0.00072458]
[1732961131961,1.62051133,96822.0,96821.0,0.00072458]
[1732961133568,0.051626,96816.0,96815.0,0.23717955]
[1732961133763,0.051626,96816.0,96815.0,0.20657955]
[1732961134066,0.20649558,96816.0,96815.0,0.20657955]
[1732961134257,0.30977842,96816.0,96815.0,0.20657955]
[1732961134756,0.30977842,96816.0,96815.0,0.21157955]
[1732961135363,0.30977842,96816.0,96815.0,0.19326123]
[1732961136674,0.30977842,96816.0,96815.0,0.17369703]
[1732961136868,0.30977842,96816.0,96815.0,0.17569703]
[1732961142371,0.30977842,96816.0,96814.0,0.20658169]
[1732961143565,0.30977842,96816.0,96814.0,0.20858169]
[1732961144878,0.7216,96815.0,96814.0,0.20858169]
[1732961145173,0.7216,96815.0,96814.0,0.19298358]
[1732961145480,0.97993193,96815.0,96814.0,0.19298358]
[1732961146772,0.97993193,96815.0,96814.0,0.18798358]
[1732961147070,0.97993193,96815.0,96814.0,0.18998358]
[1732961147579,0.97993193,96815.0,96814.0,0.18798358]
[1732961151194,0.97993193,96815.0,96814.0,0.18298358]
[1732961151486,0.97993193,96815.0,96812.0,0.14210166]
[1732961151675,0.174227,96814.0,96812.0,0.14210166]
[1732961152074,0.15549993,96813.0,96812.0,0.14210166]
[1732961152277,0.25879024,96813.0,96812.0,0.13126629]
[1732961152672,0.25879024,96813.0,96812.0,0.1137012]
[1732961152870,0.26394274,96813.0,96812.0,0.08719296]
[1732961153171,0.25879024,96813.0,96812.0,0.04823464]
[1732961153375,0.43533475,96813.0,96812.0,0.02850824]
[1732961153576,0.43533475,96813.0,96812.0,0.02750824]
[1732961153577,0.46983475,96813.0,96812.0,0.02750824]
[1732961153777,0.47183475,96813.0,96812.0,0.02650824]
[1732961154377,0.051635,96798.0,96791.0,0.0324]
[1732961154677,1.330035,96798.0,96792.0,0.0332]
[1732961154883,1.48397585,96798.0,96792.0,0.0332]
[1732961155180,1.5872843,96798.0,96792.0,0.0332]
[1732961155774,1.5872843,96798.0,96797.0,0.20961797]
[1732961156286,1.4646843,96798.0,96797.0,0.20961797]
[1732961156584,1.5356493,96798.0,96797.0,0.20961797]
[1732961156882,1.5356493,96798.0,96797.0,0.21161797]
[1732961158876,1.4130493,96798.0,96797.0,0.21161797]
[1732961159077,1.5356493,96798.0,96797.0,0.21161797]
[1732961159278,1.43234085,96798.0,96797.0,0.21161797]
[1732961159483,0.94894085,96798.0,96797.0,0.26325397]
[1732961159672,0.15394085,96798.0,96797.0,0.26325397]
[1732961159871,0.17674085,96798.0,96797.0,0.26325397]
[1732961160077,0.1226,96798.0,96797.0,0.26325397]
[1732961160482,0.01197218,96808.0,96807.0,0.051631]
[1732961160684,0.01197218,96808.0,96798.0,0.051635]
[1732961160685,0.051624,96819.0,96818.0,0.051625]
[1732961160981,0.051627,96814.0,96812.0,0.051628]
[1732961161377,0.174224,96819.0,96817.0,0.051625]
[1732961161790,0.27729103,96818.0,96817.0,0.051625]
[1732961163085,0.28429103,96818.0,96817.0,0.052625]
[1732961163379,0.28429103,96818.0,96817.0,0.051625]
[1732961163585,0.15569103,96818.0,96817.0,0.051625]
[1732961163785,0.27829103,96818.0,96817.0,0.051625]
[1732961164375,0.27929103,96818.0,96817.0,0.051625]
[1732961165989,0.27829103,96818.0,96817.0,0.051625]
[1732961166189,0.27929103,96818.0,96817.0,0.051625]
[1732961173191,0.27929103,96818.0,96814.0,0.0303]
[1732961173398,0.27929103,96818.0,96809.0,0.3608]
[1732961173702,0.051631,96806.0,96804.0,0.0319]
[1732961173990,0.12256,96805.0,96804.0,0.083532]
[1732961174987,0.12256,96805.0,96804.0,0.088532]
[1732961175595,0.27670566,96805.0,96804.0,0.0369]
[1732961177193,0.27670566,96805.0,96804.0,0.005]
[1732961177600,0.27670566,96805.0,96804.0,0.008]
[1732961185007,0.32833766,96805.0,96804.0,0.059632]
[1732961195817,0.32829766,96805.0,96804.0,0.059632]
[1732961199419,0.27666566,96805.0,96804.0,0.059632]
[1732961200524,0.01243832,96806.0,96805.0,0.051632]
[1732961200721,0.12261628,96822.0,96816.0,0.051626]
[1732961200922,9.628e-05,96822.0,96816.0,0.051626]
[1732961201116,0.18574572,96817.0,96816.0,0.051626]
[1732961202324,0.18674572,96817.0,96816.0,0.051626]
[1732961220835,9.628e-05,96822.0,96821.0,0.051623]
[1732961221137,9.628e-05,96822.0,96821.0,0.412423]
[1732961222129,0.00209628,96822.0,96821.0,0.412423]
[1732961222334,0.00509628,96822.0,96821.0,0.412423]
[1732961222539,2.8e-07,96822.0,96821.0,0.834943]
[1732961222937,0.01217178,96845.0,96843.0,0.051611]
[1732961223139,0.12252,96850.0,96843.0,0.051611]
[1732961223334,0.15427944,96844.0,96843.0,0.051611]
[1732961223533,0.15437683,96844.0,96843.0,0.051611]
[1732961223743,9.739e-05,96844.0,96843.0,0.051611]
[1732961223950,0.15581813,96844.0,96843.0,0.051611]
[1732961224639,0.15581813,96844.0,96843.0,0.053611]
[1732961224946,9.739e-05,96844.0,96843.0,0.053611]
[1732961225741,9.739e-05,96844.0,96843.0,0.054611]
[1732961228646,3.9e-07,96844.0,96843.0,0.054611]
[1732961228941,3.9e-07,96844.0,96843.0,0.354611]
[1732961229944,3.9e-07,96844.0,96843.0,0.355611]
[1732961230346,3.9e-07,96844.0,96843.0,0.353611]
[1732961230738,3.9e-07,96844.0,96843.0,0.053611]
[1732961231941,3.9e-07,96844.0,96843.0,0.051611]
[1732961233740,3.9e-07,96844.0,96843.0,0.351611]
[1732961237444,3.9e-07,96844.0,96843.0,0.36392506]
[1732961239349,0.0301,96862.0,96843.0,0.36392506]
[1732961239545,0.0301,96862.0,96861.0,0.051602]
[1732961240054,0.18599937,96862.0,96861.0,0.051602]
[1732961241450,0.23760037,96862.0,96861.0,0.001702]
[1732961241651,0.23760037,96862.0,96861.0,0.051602]
[1732961241652,0.18599937,96862.0,96861.0,0.051602]
[1732961241845,0.18641538,96862.0,96861.0,0.055602]
[1732961242041,0.18599937,96862.0,96861.0,0.055602]
[1732961242245,0.18599937,96862.0,96861.0,0.057602]
[1732961248757,0.15589937,96862.0,96861.0,0.418402]
[1732961248963,0.12244,96875.0,96874.0,0.051595]
[1732961249164,0.0317,96876.0,96875.0,0.051594]
[1732961249657,0.18581944,96876.0,96875.0,0.051594]
[1732961252063,0.18781944,96876.0,96875.0,0.051594]
[1732961266179,0.15611944,96876.0,96875.0,0.051594]
[1732961270675,0.002,96876.0,96875.0,0.051594]
[1732961270877,0.002,96876.0,96875.0,0.173994]
[1732961274777,0.002,96876.0,96875.0,0.051594]
[1732961281585,0.053594,96876.0,96875.0,0.051594]
[1732961281894,0.15783923,96876.0,96875.0,0.051594]
[1732961294793,0.20943323,96876.0,96875.0,0.051594]
[1732961294992,0.051594,96875.0,96874.0,0.051594]
[1732961295195,0.084094,96875.0,96874.0,0.051594]
[1732961295395,0.23812992,96875.0,96874.0,0.051594]
[1732961296898,0.23912992,96875.0,96874.0,0.051594]
[1732961297205,0.051597,96871.0,96870.0,0.051596]
[1732961297399,0.051595,96874.0,96868.0,0.50975584]
[1732961297598,0.051595,96874.0,96873.0,0.051595]
[1732961300103,0.052595,96874.0,96873.0,0.051595]
[1732961302111,0.051598,96869.0,96868.0,0.56135384]
[1732961302308,0.051598,96869.0,96868.0,0.56083384]
[1732961304010,0.051598,96869.0,96868.0,0.20003384]
[1732961304406,0.051598,96869.0,96868.0,0.14843584]
[1732961304607,0.20744835,96869.0,96868.0,0.14843584]
[1732961305699,0.20744835,96869.0,96860.0,0.00011575]
[1732961305700,0.15585035,96869.0,96860.0,0.00011575]
[1732961305904,0.15585035,96869.0,96860.0,0.05171775]
[1732961305905,0.051602,96861.0,96860.0,0.05171775]
[1732961306104,0.051602,96861.0,96860.0,0.00011575]
[1732961306610,0.56826042,96861.0,96860.0,0.00011575]
[1732961307005,0.56826042,96861.0,96860.0,0.00411575]
[1732961307607,0.56826042,96861.0,96860.0,0.00611575]
[1732961318726,0.20746042,96861.0,96860.0,0.00611575]
[1732961335527,0.56826042,96861.0,96860.0,0.00611575]
[1732961339142,0.69066042,96861.0,96860.0,0.00611575]
[1732961362654,0.56826042,96861.0,96860.0,0.00611575]
[1732961362855,0.69066042,96861.0,96860.0,0.00611575]
[1732961363664,0.56826042,96861.0,96860.0,0.00611575]
[1732961363864,0.69066042,96861.0,96860.0,0.00611575]
[1732961368464,0.32986042,96861.0,96860.0,0.00611575]
[1732961368665,0.69066042,96861.0,96860.0,0.00611575]
[1732961369464,0.32986042,96861.0,96860.0,0.00611575]
[1732961369665,0.69066042,96861.0,96860.0,0.00611575]
[1732961370869,0.56826042,96861.0,96860.0,0.05771775]
[1732961373260,0.51665842,96861.0,96860.0,0.05771775]
[1732961379975,0.15585842,96861.0,96860.0,0.05771775]
[1732961380361,0.51595435,96862.0,96861.0,0.051602]
[1732961380864,0.3608,96862.0,96861.0,0.051602]
[1732961381061,0.51595435,96862.0,96861.0,0.051602]
[1732961381673,0.51595435,96862.0,96861.0,0.053602]
[1732961382468,0.51595435,96862.0,96861.0,0.057602]
[1732961390268,0.56755535,96862.0,96861.0,0.057602]
[1732961392371,0.56755535,96862.0,96861.0,0.006]
[1732961395280,0.20675535,96862.0,96861.0,0.006]
[1732961395477,0.56755535,96862.0,96861.0,0.006]
[1732961428809,0.3608,96862.0,96861.0,0.057602]
[1732961429005,0.3608,96862.0,96861.0,0.122702]
[1732961430714,0.01219274,96868.0,96867.0,0.051599]
[1732961431011,0.051598,96869.0,96868.0,0.051598]
[1732961431413,0.20700278,96869.0,96868.0,0.051598]
[1732961432815,0.21944205,96869.0,96868.0,0.060598]
[1732961435215,0.16784405,96869.0,96868.0,0.060598]
[1732961436310,0.15540478,96869.0,96868.0,0.060598]
[1732961436910,0.051592,96880.0,96878.0,0.051593]
[1732961437109,0.14302143,96879.0,96878.0,0.051593]
[1732961437309,0.2989013,96879.0,96878.0,0.051593]
[1732961438515,0.1765413,96879.0,96878.0,0.052593]
[1732961438717,0.2989013,96879.0,96878.0,0.052593]
[1732961440635,0.27823987,96879.0,96878.0,0.052593]
[1732961441325,0.15587987,96879.0,96878.0,0.052593]
[1732961441528,0.27823987,96879.0,96878.0,0.052593]
[1732961441936,0.15587987,96879.0,96878.0,0.052593]
[1732961442235,0.27823987,96879.0,96878.0,0.052593]
[1732961445028,0.15587987,96879.0,96878.0,0.052593]
[1732961445618,0.15444306,96880.0,96879.0,0.051592]
[1732961445820,0.15444306,96880.0,96879.0,0.083092]
[1732961446025,0.443283,96898.0,96894.0,0.051584]
[1732961446222,0.14298143,96895.0,96894.0,0.051584]
[1732961446533,0.29742449,96895.0,96894.0,0.051584]
[1732961451436,0.27676306,96895.0,96894.0,0.051584]
[1732961457042,0.051584,96894.0,96881.0,0.051591]
[1732961457242,0.051584,96894.0,96892.0,0.051585]
[1732961457539,0.15543053,96893.0,96892.0,0.051585]
[1732961457735,0.051588,96888.0,96877.0,0.3608]
[1732961458037,0.051588,96888.0,96886.0,0.051588]
[1732961458248,0.093,96892.0,96891.0,0.051586]
[1732961458741,0.24818028,96892.0,96891.0,0.051586]
[1732961459643,0.29976528,96892.0,96891.0,0.051586]
[1732961462139,0.29976528,96892.0,96891.0,0.053586]
[1732961462444,0.29976528,96892.0,96891.0,0.054586]
[1732961463342,0.29976528,96892.0,96891.0,0.003]
[1732961464046,0.29976528,96892.0,96891.0,0.054586]
[1732961468146,0.29976528,96892.0,96891.0,0.003]
[1732961470746,0.29976528,96892.0,96891.0,0.054586]
[1732961470947,0.20676528,96892.0,96891.0,0.054586]
[1732961471257,0.15518028,96892.0,96891.0,0.054586]
[1732961475054,0.15485316,96893.0,96892.0,0.051585]
[1732961475249,0.051585,96893.0,96892.0,0.051585]
[1732961475553,0.20720388,96893.0,96892.0,0.051585]
[1732961476248,0.20720388,96893.0,96892.0,0.052585]
[1732961483056,0.20720388,96893.0,96892.0,0.001]
[1732961495766,0.20720388,96893.0,96892.0,0.052585]
[1732961499962,0.20720388,96893.0,96892.0,0.001]
[1732961520184,0.20720388,96893.0,96892.0,0.052585]
[1732961522278,0.20720388,96893.0,96892.0,0.056585]
[1732961523696,0.20720388,96893.0,96892.0,0.058585]
[1732961524394,0.20720388,96893.0,96892.0,0.007]
[1732961524998,0.20720388,96893.0,96892.0,0.058585]
[1732961536100,0.15561888,96893.0,96892.0,0.058585]
[1732961536610,0.15564374,96894.0,96893.0,0.051585]
[1732961536811,0.3608,96895.0,96892.0,0.007]
[1732961537112,0.3608,96895.0,96894.0,0.051584]
[1732961537618,0.51536938,96895.0,96894.0,0.051584]
[1732961538221,0.56695338,96895.0,96894.0,0.051584]
[1732961538719,0.56695338,96895.0,96894.0,0.055584]
[1732961539312,0.56695338,96895.0,96894.0,0.057584]
[1732961541518,0.20615338,96895.0,96894.0,0.055584]
[1732961541708,0.51536938,96895.0,96894.0,0.051584]
[1732961543530,0.15456938,96895.0,96894.0,0.051584]
[1732961543823,0.51536938,96895.0,96894.0,0.051584]
[1732961544015,0.3608,96895.0,96894.0,0.051584]
[1732961544211,0.51627851,96895.0,96894.0,0.051584]
[1732961544927,0.15547851,96895.0,96894.0,0.051584]
[1732961550223,0.15689838,96895.0,96894.0,0.051584]
[1732961551822,0.20848238,96895.0,96894.0,0.051584]
[1732961552717,0.051587,96889.0,96888.0,0.051587]
[1732961553125,0.05300687,96889.0,96888.0,0.051587]
[1732961553326,0.20777821,96889.0,96888.0,0.051587]
[1732961557623,0.15619121,96889.0,96881.0,0.12228]
[1732961557924,0.05159,96883.0,96882.0,0.05159]
[1732961558113,0.05300987,96883.0,96882.0,0.05159]
[1732961559122,0.051592,96880.0,96879.0,0.3608]
[1732961559321,0.051594,96875.0,96871.0,0.051596]
[1732961559834,0.20605705,96875.0,96871.0,0.051596]
[1732961560020,0.20605705,96875.0,96864.0,0.01195979]
[1732961560215,0.20605705,96875.0,96860.0,0.00011575]
[1732961560216,0.20747692,96875.0,96865.0,0.051599]
[1732961561121,0.20747692,96875.0,96866.0,0.051599]
[1732961562923,0.20747692,96875.0,96860.0,0.05380275]
[1732961563115,0.20747692,96875.0,96865.0,0.053687]
[1732961563322,0.32975692,96875.0,96871.0,0.051596]
[1732961563930,0.32975692,96875.0,96865.0,0.053687]
[1732961564324,0.32975692,96875.0,96867.0,0.051598]
[1732961566535,0.32975692,96875.0,96860.0,0.05380275]
[1732961566742,0.32975692,96875.0,96863.0,0.0516]
[1732961570535,0.32975692,96875.0,96864.0,0.0516]
[1732961570727,0.32975692,96875.0,96860.0,0.05380275]
[1732961571533,0.32975692,96875.0,96865.0,0.0516]
[1732961572829,0.32975692,96875.0,96860.0,0.05380275]
[1732961573034,0.32975692,96875.0,96860.0,0.00011575]
[1732961573336,0.051602,96861.0,96860.0,0.00011575]
[1732961573535,0.412402,96861.0,96860.0,0.00011575]
[1732961573731,0.56621469,96861.0,96860.0,0.00011575]
[1732961574132,0.56763456,96861.0,96860.0,0.00011575]
[1732961574632,0.56763456,96861.0,96860.0,0.01111575]
[1732961578137,0.57967191,96861.0,96860.0,0.01111575]
[1732961593134,0.21887191,96861.0,96860.0,0.01111575]
[1732961593338,0.57967191,96861.0,96860.0,0.01111575]
[1732961595246,0.21887191,96861.0,96860.0,0.01111575]
[1732961595552,0.57967191,96861.0,96860.0,0.01111575]
[1732961602855,0.52806991,96861.0,96860.0,0.06271775]
[1732961603055,0.15523256,96861.0,96860.0,0.06271775]
[1732961603256,0.10533256,96861.0,96860.0,0.06271775]
[1732961607868,0.10533256,96861.0,96860.0,0.42351775]
[1732961612569,0.10533256,96861.0,96860.0,0.06271775]
[1732961626887,0.15693456,96861.0,96860.0,0.06271775]
[1732961629289,0.051604,96857.0,96853.0,0.051606]
[1732961629487,0.083605,96856.0,96841.0,0.7633473]
[1732961629678,0.083605,96856.0,96854.0,0.051605]
[1732961629679,0.26906283,96856.0,96854.0,0.051605]
[1732961630189,0.00141987,96855.0,96854.0,0.051605]
[1732961631984,0.00141987,96855.0,96854.0,0.060605]
[1732961632383,0.03281987,96855.0,96854.0,0.060605]
[1732961633195,0.03281987,96855.0,96854.0,0.065605]
[1732961636002,0.08442487,96855.0,96854.0,0.065605]
[1732961640295,0.03281987,96855.0,96854.0,0.063605]
[1732961640998,0.03281987,96855.0,96854.0,0.054605]
[1732961641191,0.03281987,96855.0,96854.0,0.059605]
[1732961651194,0.00141987,96855.0,96854.0,0.059605]
[1732961671909,0.00141987,96855.0,96854.0,0.420405]
[1732961674214,0.00141987,96855.0,96854.0,0.43275148]
[1732961675414,0.00141987,96855.0,96854.0,0.07195148]
[1732961675623,0.00141987,96855.0,96854.0,0.43275148]
[1732961679315,0.00141987,96855.0,96854.0,0.420405]
[1732961683327,0.00141987,96855.0,96854.0,0.60572324]
[1732961683514,0.00141987,96855.0,96854.0,0.420405]
[1732961690529,0.00141987,96855.0,96854.0,0.059605]
[1732961690718,0.03241987,96855.0,96854.0,0.059605]
[1732961694626,0.06271987,96855.0,96854.0,0.059605]
[1732961695420,0.06271987,96855.0,96854.0,0.008]
[1732961697349,0.42351987,96855.0,96854.0,0.008]
[1732961697934,0.47512487,96855.0,96854.0,0.008]
[1732961700636,0.11432487,96855.0,96854.0,0.008]
[1732961700832,0.11432487,96855.0,96854.0,0.003]
[1732961701131,0.051606,96853.0,96852.0,0.051607]
[1732961701340,0.05302587,96853.0,96852.0,0.051607]
[1732961703028,0.05302587,96853.0,96852.0,0.052607]
[1732961704527,0.20811195,96853.0,96852.0,0.001]
[1732961704827,0.051609,96847.0,96846.0,0.24710876]
[1732961705035,0.3608,96847.0,96834.0,0.00154874]
[1732961705242,0.051616,96835.0,96834.0,0.00154874]
[1732961705432,0.05303587,96835.0,96834.0,0.00154874]
[1732961705632,0.20873616,96835.0,96834.0,0.00154874]
[1732961706139,0.20873616,96835.0,96834.0,0.01054874]
[1732961706734,0.20873616,96835.0,96834.0,0.00154874]
[1732961706940,0.20973616,96835.0,96834.0,0.01054874]
[1732961708439,0.20973616,96835.0,96834.0,0.06216474]
[1732961709041,0.20973616,96835.0,96834.0,0.06716474]
[1732961712533,0.15812016,96835.0,96834.0,0.06716474]
[1732961721851,0.00154926,96856.0,96855.0,0.051605]
[1732961722241,0.15678848,96856.0,96855.0,0.051605]
[1732961723047,0.15778848,96856.0,96855.0,0.051605]
[1732961723745,0.15878848,96856.0,96855.0,0.051605]
[1732961730748,0.15778848,96856.0,96855.0,0.051605]
[1732961731243,0.15678848,96856.0,96855.0,0.051605]
[1732961732558,0.15778848,96856.0,96855.0,0.051605]
[1732961733958,0.15678848,96856.0,96855.0,0.051605]
[1732961736643,0.15778848,96856.0,96855.0,0.051605]
[1732961737257,0.15678848,96856.0,96855.0,0.051605]
[1732961739254,0.15678848,96856.0,96855.0,0.052605]
[1732961739457,0.15778848,96856.0,96855.0,0.052605]
[1732961739665,0.15878848,96856.0,96855.0,0.051605]
[1732961740857,0.15778848,96856.0,96855.0,0.051605]
[1732961741853,0.15678848,96856.0,96855.0,0.051605]
[1732961742047,0.15778848,96856.0,96855.0,0.051605]
[1732961742451,0.15678848,96856.0,96855.0,0.051605]
[1732961742654,0.15778848,96856.0,96855.0,0.052605]
[1732961742960,0.15778848,96856.0,96855.0,0.051605]
[1732961743161,0.15778848,96856.0,96855.0,0.053605]
[1732961743652,0.15778848,96856.0,96855.0,0.002]
[1732961744057,0.22238848,96856.0,96855.0,0.002]
[1732961744258,0.22338848,96856.0,96855.0,0.002]
[1732961744654,0.051607,96852.0,96848.0,0.3608]
[1732961745055,0.15467185,96851.0,96848.0,0.3608]
[1732961745264,0.051608,96850.0,96847.0,0.051609]
[1732961746059,0.051608,96850.0,96848.0,0.001]
[1732961746459,0.051608,96850.0,96847.0,0.051609]
[1732961746652,0.051608,96850.0,96847.0,0.052609]
[1732961747857,0.3608,96852.0,96847.0,0.001]
[1732961748062,0.3608,96852.0,96850.0,0.051607]
[1732961748254,0.15481585,96851.0,96850.0,0.051607]
[1732961749158,0.15391654,96853.0,96851.0,0.051607]
[1732961749559,0.06614926,96856.0,96852.0,0.051606]
[1732961749761,0.15504999,96853.0,96852.0,0.051606]
[1732961750062,0.0781382,96856.0,96852.0,0.051606]
[1732961750364,0.15507093,96854.0,96852.0,0.051606]
[1732961750762,0.1297432,96856.0,96852.0,0.051606]
[1732961750965,0.15507093,96853.0,96852.0,0.051606]
[1732961751364,0.001,96853.0,96852.0,0.051606]
[1732961751759,0.15393741,96853.0,96852.0,0.051606]
[1732961752258,0.15393741,96853.0,96841.0,0.0624]
[1732961752259,0.15393741,96855.0,96854.0,0.051606]
[1732961752460,0.0145382,96856.0,96854.0,0.051606]
[1732961752761,0.15410539,96855.0,96854.0,0.051606]
[1732961755057,0.15510539,96855.0,96854.0,0.051606]
[1732961755459,0.15610539,96855.0,96854.0,0.051606]
[1732961755860,0.15510539,96855.0,96854.0,0.051606]
[1732961756062,0.15610539,96855.0,96854.0,0.051606]
[1732961756669,0.15510539,96855.0,96854.0,0.051606]
[1732961757559,0.15410539,96855.0,96854.0,0.051606]
[1732961758356,0.15510539,96855.0,96854.0,0.051606]
[1732961758771,0.15410539,96855.0,96854.0,0.051606]
[1732961758968,0.15510539,96855.0,96854.0,0.051606]
[1732961759275,0.15610539,96855.0,96854.0,0.051606]
[1732961760162,0.15510539,96855.0,96854.0,0.051606]
[1732961760363,0.001,96855.0,96854.0,0.051606]
[1732961761475,0.00154926,96856.0,96854.0,0.051606]
[1732961761774,0.00154926,96856.0,96855.0,0.3608]
[1732961762778,0.000128,96861.0,96860.0,0.051602]
[1732961763171,0.15584415,96861.0,96860.0,0.051602]
[1732961764779,0.15884415,96861.0,96860.0,0.051602]
[1732961765172,0.16084415,96861.0,96860.0,0.051602]
[1732961768783,0.52164415,96861.0,96860.0,0.051602]
[1732961777184,0.16084415,96861.0,96860.0,0.051602]
[1732961777385,0.52164415,96861.0,96860.0,0.051602]
[1732961779988,0.57324615,96861.0,96860.0,0.051602]
[1732961780878,0.52164415,96861.0,96860.0,0.051602]
[1732961787789,0.57324615,96861.0,96860.0,0.051602]
[1732961790199,0.70108615,96861.0,96860.0,0.051602]
[1732961794093,0.64948415,96861.0,96847.0,0.3608]
[1732961794295,0.051606,96854.0,96852.0,0.051606]
[1732961794699,0.15411676,96853.0,96852.0,0.051606]
[1732961795000,0.051604,96857.0,96852.0,0.051606]
[1732961795197,0.051605,96855.0,96852.0,0.051606]
[1732961795392,0.051606,96854.0,96852.0,0.051606]
[1732961795605,0.20642645,96854.0,96852.0,0.051606]
[1732961796007,0.051606,96854.0,96852.0,0.051606]
[1732961796302,0.15482045,96853.0,96852.0,0.051606]
[1732961796491,0.15482045,96853.0,96847.0,0.001]
[1732961796697,0.051607,96852.0,96847.0,0.001]
[1732961797201,0.15477829,96851.0,96848.0,0.051609]
[1732961797503,0.051608,96850.0,96848.0,0.051609]
[1732961798304,0.051608,96850.0,96848.0,0.054609]
[1732961798504,0.051608,96850.0,96848.0,0.003]
[1732961798505,0.51637288,96849.0,96848.0,0.003]
[1732961798901,0.61962586,96849.0,96848.0,0.003]
[1732961799400,0.051618,96831.0,96829.0,0.051619]
[1732961799908,0.15562974,96830.0,96829.0,0.051619]
[1732961800313,0.051619,96829.0,96827.0,0.57756252]
[1732961800512,0.051619,96829.0,96827.0,0.57704252]
[1732961800701,0.51507487,96828.0,96827.0,0.18534252]
[1732961800905,0.57537487,96828.0,96827.0,0.18534252]
[1732961801103,0.67865078,96828.0,96827.0,0.18534252]
[1732961801513,0.67865078,96828.0,96827.0,0.18834252]
[1732961802015,0.69085826,96828.0,96827.0,0.19434252]
[1732961802510,0.69085826,96828.0,96827.0,0.009]
[1732961803120,0.69085826,96828.0,96827.0,0.006]
[1732961803413,0.69085826,96828.0,96806.0,0.00154949]
[1732961803414,0.051631,96807.0,96806.0,0.00154949]
[1732961803803,0.20707457,96807.0,96806.0,0.00154949]
[1732961804511,0.20807457,96807.0,96806.0,0.01054949]
[1732961804904,0.20807457,96807.0,96806.0,0.01854949]
[1732961805211,0.23827457,96807.0,96806.0,0.01854949]
[1732961805603,0.23827457,96807.0,96806.0,0.017]
[1732961806312,0.23827457,96807.0,96806.0,0.009]
[1732961806512,0.23827457,96807.0,96806.0,0.015]
[1732961807102,0.23727457,96807.0,96806.0,0.006]
[1732961807317,0.23827457,96807.0,96806.0,0.008]
[1732961807816,0.24227457,96807.0,96806.0,0.001]
[1732961808115,0.25450106,96807.0,96806.0,0.001]
[1732961808308,0.24950106,96807.0,96806.0,0.001]
[1732961808510,0.24950106,96807.0,96806.0,0.003]
[1732961810407,0.24950106,96807.0,96806.0,0.004]
[1732961810606,0.24950106,96807.0,96806.0,0.005]
[1732961811218,0.24950106,96807.0,96806.0,0.006]
[1732961812403,0.24950106,96807.0,96806.0,0.007]
[1732961814017,0.24950106,96807.0,96806.0,0.004]
[1732961814703,0.24950106,96807.0,96806.0,0.003]
[1732961814905,0.24950106,96807.0,96806.0,0.004]
[1732961815112,0.3527999,96807.0,96806.0,0.004]
[1732961815508,0.3528846,96807.0,96806.0,0.004]
[1732961818012,0.051635,96798.0,96797.0,0.20661797]
[1732961818216,0.182835,96798.0,96797.0,0.20661797]
[1732961818404,0.33708171,96798.0,96797.0,0.20661797]
[1732961819319,0.34408171,96798.0,96797.0,0.20761797]
[1732961819521,0.70488171,96798.0,96797.0,0.20761797]
[1732961819820,0.70888171,96798.0,96797.0,0.20761797]
[1732961820712,0.81219016,96798.0,96797.0,0.20761797]
[1732961828618,0.051648,96774.0,96773.0,0.0321]
[1732961828819,0.051652,96768.0,96766.0,0.23574657]
[1732961829117,0.15558166,96767.0,96766.0,0.23574657]
[1732961830713,0.15459328,96769.0,96766.0,0.23574657]
[1732961831224,0.001,96768.0,96766.0,0.24074657]
[1732961831622,0.15959328,96767.0,96766.0,0.23674657]
[1732961831815,0.15959328,96767.0,96766.0,0.23874657]
[1732961832126,0.005,96767.0,96766.0,0.23874657]
[1732961832310,0.15433822,96767.0,96766.0,0.23774657]
[1732961832512,0.15433822,96767.0,96766.0,0.23574657]
[1732961832716,0.052652,96768.0,96766.0,0.23574657]
[1732961833217,0.15433435,96767.0,96766.0,0.23574657]
[1732961833419,0.15633435,96767.0,96766.0,0.23574657]
[1732961834526,0.15833435,96767.0,96766.0,0.23574657]
[1732961834922,0.15633435,96767.0,96766.0,0.23574657]
[1732961835123,0.16041488,96767.0,96766.0,0.23574657]
[1732961835324,0.15841488,96767.0,96766.0,0.23574657]
[1732961836326,0.00329832,96767.0,96766.0,0.42113939]
[1732961836519,0.19102619,96767.0,96766.0,0.42113939]
[1732961838423,0.19402619,96767.0,96766.0,0.42113939]
[1732961838732,0.29736773,96767.0,96766.0,0.42113939]
[1732961841523,0.29736773,96767.0,96766.0,0.18539282]
[1732961842329,0.29736773,96767.0,96757.0,0.18539282]
[1732961842530,0.051657,96758.0,96757.0,0.18539282]
[1732961842727,0.184017,96758.0,96757.0,0.18539282]
[1732961843037,0.051658,96755.0,96753.0,0.18511646]
[1732961843234,0.28699062,96758.0,96752.0,0.18511646]
[1732961843235,0.051659,96753.0,96752.0,0.18511646]
[1732961843437,0.051659,96753.0,96748.0,0.46566722]
[1732961843733,0.05166,96752.0,96748.0,0.46510722]
[1732961845530,0.051661,96751.0,96748.0,0.46910722]
[1732961846035,0.051661,96751.0,96748.0,0.47110722]
[1732961846239,0.13236,96758.0,96754.0,0.051659]
[1732961846431,0.051658,96756.0,96754.0,0.051659]
[1732961846627,0.20612422,96756.0,96754.0,0.051659]
[1732961846832,0.13236,96758.0,96748.0,0.41744522]
[1732961847034,0.13236,96758.0,96748.0,0.47110722]
[1732961847336,0.13236,96758.0,96748.0,0.41944522]
[1732961847337,0.1556713,96755.0,96748.0,0.41944522]
[1732961847532,0.1556713,96757.0,96756.0,0.051658]
[1732961847832,0.28797487,96758.0,96756.0,0.051658]
[1732961848035,0.15561487,96758.0,96756.0,0.051658]
[1732961848236,0.15561487,96757.0,96756.0,0.051658]
[1732961848731,0.3608,96759.0,96754.0,0.001]
[1732961848732,0.15561487,96758.0,96757.0,0.051657]
[1732961848940,0.13236,96761.0,96760.0,0.051656]
[1732961849438,0.15441406,96761.0,96760.0,0.051656]
[1732961850029,0.15541406,96761.0,96760.0,0.051656]
[1732961851225,0.15741406,96761.0,96760.0,0.051656]
[1732961852233,0.15641406,96761.0,96760.0,0.052656]
[1732961853742,0.15641406,96761.0,96760.0,0.051656]
[1732961853942,0.15441406,96761.0,96760.0,0.053656]
[1732961854444,0.15441406,96761.0,96760.0,0.051656]
[1732961854647,0.15641406,96761.0,96760.0,0.051656]